bitfinex/quotes_BTCUSD_20250529
["timestamp","ask_amount","ask_price","bid_price","bid_amount"]
[1748515732836,2.26715938,108580.0,108570.0,0.79001342]
[1748515733093,2.25205938,108580.0,108570.0,0.79001342]
[1748515733535,2.25205938,108580.0,108570.0,0.39001342]
[1748515733987,2.25205938,108580.0,108570.0,0.79001342]
[1748515735262,2.25205938,108580.0,108570.0,0.79922406]
[1748515735472,2.25205938,108580.0,108570.0,0.79001342]
[1748515735685,2.25205938,108580.0,108570.0,0.79922406]
[1748515735890,2.25205938,108580.0,108570.0,0.79001342]
[1748515736098,2.26126909,108580.0,108570.0,0.83092406]
[1748515736317,2.26126909,108580.0,108570.0,0.84013462]
[1748515736533,2.26126909,108580.0,108570.0,0.84013966]
[1748515736944,2.26126909,108580.0,108570.0,0.80843966]
[1748515737154,2.26126909,108580.0,108570.0,0.7992291]
[1748515737357,2.26126909,108580.0,108570.0,0.82141846]
[1748515737567,2.24126909,108580.0,108570.0,0.8306291]
[1748515737906,2.24126909,108580.0,108570.0,0.79001846]
[1748515738115,2.24126909,108580.0,108570.0,1.09752238]
[1748515738562,2.24126909,108580.0,108570.0,1.10673294]
[1748515738974,2.24126909,108580.0,108570.0,1.09752238]
[1748515739444,2.07549167,108580.0,108570.0,1.05125628]
[1748515739652,2.25968765,108580.0,108570.0,1.13799294]
[1748515740301,2.25968765,108580.0,108570.0,1.14720341]
[1748515740525,2.25968765,108580.0,108570.0,1.13799294]
[1748515740755,2.07549167,108580.0,108570.0,1.06046738]
[1748515740976,2.08470146,108580.0,108570.0,1.06967768]
[1748515741186,2.08470146,108580.0,108570.0,1.06046738]
[1748515741424,2.08470146,108580.0,108570.0,1.06967768]
[1748515741650,2.08470146,108580.0,108570.0,1.06046738]
[1748515741869,2.26889744,108580.0,108570.0,1.05125699]
[1748515742089,2.26889744,108580.0,108570.0,1.32220652]
[1748515742303,2.26889744,108580.0,108570.0,1.33141699]
[1748515742769,2.26889744,108580.0,108570.0,1.06046729]
[1748515743197,2.26889744,108580.0,108570.0,1.06046738]
[1748515743626,2.26889744,108580.0,108570.0,1.06046787]
[1748515743877,2.06628205,108580.0,108570.0,1.69175492]
[1748515744089,2.07549167,108580.0,108570.0,1.691755]
[1748515744509,2.06628205,108580.0,108570.0,1.70088158]
[1748515744720,2.04628205,108580.0,108570.0,1.70088107]
[1748515745357,2.0370726,108580.0,108570.0,1.70088107]
[1748515745797,2.0278634,108580.0,108570.0,1.70088107]
[1748515746007,2.0370726,108580.0,108570.0,1.70088107]
[1748515746655,2.03707252,108580.0,108570.0,1.70088107]
[1748515746874,2.04628181,108580.0,108570.0,1.70088107]
[1748515747307,2.03707252,108580.0,108570.0,1.70088107]
[1748515747515,2.0278634,108580.0,108570.0,1.70088107]
[1748515747740,2.04628197,108580.0,108570.0,1.70088107]
[1748515748887,2.04628197,108580.0,108570.0,1.40258779]
[1748515748888,2.0370726,108580.0,108570.0,1.40258779]
[1748515749118,2.04628197,108580.0,108570.0,1.70088107]
[1748515749726,2.04628197,108580.0,108570.0,1.69167102]
[1748515749911,2.04628197,108580.0,108570.0,1.70088107]
[1748515750556,2.04628197,108580.0,108570.0,1.40258779]
[1748515750736,2.05549159,108580.0,108570.0,1.69167102]
[1748515750944,2.05549159,108580.0,108570.0,1.42076124]
[1748515751159,2.05549159,108580.0,108570.0,1.66958124]
[1748515751742,2.03549151,108580.0,108570.0,1.66958082]
[1748515751937,2.03549151,108580.0,108570.0,1.00552754]
[1748515752310,2.04470122,108580.0,108570.0,1.70682464]
[1748515752723,2.04470122,108580.0,108570.0,1.69761451]
[1748515754206,2.03549151,108580.0,108570.0,1.35761459]
[1748515754413,2.04470122,108580.0,108570.0,1.36682472]
[1748515755034,2.04470122,108580.0,108570.0,1.35761459]
[1748515755873,2.03549151,108580.0,108570.0,1.36682481]
[1748515756284,2.04470113,108580.0,108570.0,1.36682498]
[1748515756522,2.04470113,108580.0,108570.0,1.36682456]
[1748515756738,2.04470113,108580.0,108570.0,1.36682413]
[1748515757264,2.22889711,108580.0,108570.0,1.32990309]
[1748515757482,2.04470113,108580.0,108570.0,1.33911331]
[1748515757699,2.04470113,108580.0,108570.0,1.34832344]
[1748515758111,2.03549151,108580.0,108570.0,1.35753349]
[1748515758372,2.03549151,108580.0,108570.0,1.34832378]
[1748515758586,2.04470113,108580.0,108570.0,1.34832378]
[1748515758801,2.04470164,108580.0,108570.0,1.00353748]
[1748515759013,2.02470164,108580.0,108570.0,1.34832395]
[1748515759438,2.20889762,108580.0,108570.0,1.32990326]
[1748515759646,2.02470164,108580.0,108570.0,1.35753434]
[1748515760324,2.01549227,108580.0,108570.0,1.32990326]
[1748515760575,2.01549227,108580.0,108570.0,1.33911373]
[1748515760783,2.01549227,108580.0,108570.0,1.33911365]
[1748515760784,2.19968825,108580.0,108570.0,1.33911365]
[1748515761005,2.01549227,108580.0,108570.0,1.34832395]
[1748515761220,2.02470206,108580.0,108570.0,1.34832395]
[1748515761670,2.1996885,108580.0,108570.0,1.32990326]
[1748515761895,2.01549252,108580.0,108570.0,1.34832387]
[1748515762105,2.00628273,108580.0,108570.0,1.34832387]
[1748515762318,2.19047871,108580.0,108570.0,1.32990326]
[1748515762522,2.1996885,108580.0,108570.0,1.34832412]
[1748515762730,2.00628273,108580.0,108570.0,1.34832412]
[1748515763171,2.00628273,108580.0,108570.0,1.33911365]
[1748515763398,2.0247013,108580.0,108570.0,1.35753417]
[1748515763811,2.0247013,108580.0,108570.0,1.34832395]
[1748515764225,2.0247013,108580.0,108570.0,1.35753417]
[1748515764412,2.22217879,108580.0,108570.0,0.77083967]
[1748515764667,2.22217879,108580.0,108570.0,0.84727309]
[1748515764881,2.22217879,108580.0,108570.0,0.86237351]
[1748515765100,2.22217879,108580.0,108570.0,1.15166407]
[1748515765539,2.22217879,108580.0,108570.0,1.13338915]
[1748515765791,2.22217879,108580.0,108570.0,1.12417859]
[1748515765997,2.22217879,108580.0,108570.0,1.11496795]
[1748515766213,2.22217879,108580.0,108570.0,1.12417859]
[1748515766666,2.21296917,108580.0,108570.0,0.83488795]
[1748515766892,2.19296917,108580.0,108570.0,0.82702622]
[1748515767107,2.19296917,108580.0,108570.0,1.10710622]
[1748515768400,2.19296917,108580.0,108570.0,0.74146622]
[1748515768608,2.19296917,108580.0,108570.0,1.10710622]
[1748515769949,2.19296917,108580.0,108570.0,1.10710508]
[1748515771471,2.19296917,108580.0,108570.0,0.77152891]
[1748515771905,2.19296917,108580.0,108570.0,1.10710508]
[1748515773909,2.17296917,108580.0,108570.0,1.10710508]
[1748515774350,2.17296917,108580.0,108570.0,0.74146404]
[1748515774579,2.17296917,108580.0,108570.0,0.82702404]
[1748515774790,2.17296917,108580.0,108570.0,1.10121617]
[1748515775200,2.17296917,108580.0,108570.0,0.82113617]
[1748515775417,2.17296917,108580.0,108570.0,0.70121617]
[1748515775635,0.19342342,108570.0,108560.0,0.80604964]
[1748515775843,0.21002342,108570.0,108560.0,1.57168964]
[1748515776049,0.20263381,108570.0,108560.0,1.20604964]
[1748515776266,0.20263381,108570.0,108560.0,1.57168964]
[1748515776482,0.19342342,108570.0,108560.0,1.56382791]
[1748515777747,0.20942342,108570.0,108560.0,0.85344787]
[1748515777977,0.31617737,108570.0,108560.0,0.53312]
[1748515778222,0.31617737,108570.0,108560.0,0.8142]
[1748515778654,0.31617737,108570.0,108560.0,1.14977617]
[1748515779303,0.31617737,108570.0,108560.0,0.8142]
[1748515779514,0.31617737,108570.0,108560.0,1.14977617]
[1748515781061,0.29617737,108570.0,108560.0,1.14977617]
[1748515781500,0.30538784,108570.0,108560.0,1.14977617]
[1748515781886,0.64538784,108570.0,108560.0,1.14977617]
[1748515782586,0.64538784,108570.0,108560.0,0.8142]
[1748515783122,0.30538784,108570.0,108560.0,0.8142]
[1748515784548,0.30538784,108570.0,108560.0,0.41664]
[1748515788058,0.28538784,108570.0,108560.0,0.41664]
[1748515788835,0.28538784,108570.0,108560.0,0.051]
[1748515789048,0.28538784,108570.0,108560.0,0.33108]
[1748515789668,0.29477486,108570.0,108560.0,0.33108]
[1748515790919,0.29477486,108570.0,108560.0,0.051]
[1748515791336,0.28538784,108570.0,108560.0,0.051]
[1748515793244,0.28038784,108570.0,108560.0,0.051]
[1748515795071,0.26038784,108570.0,108560.0,0.051]
[1748515795297,0.25538784,108570.0,108560.0,0.051]
[1748515796416,0.25538784,108570.0,108560.0,0.38674957]
[1748515796831,0.25538784,108570.0,108560.0,0.051]
[1748515797911,0.23968784,108570.0,108560.0,0.051]
[1748515800911,0.25528784,108570.0,108560.0,0.051]
[1748515802270,0.23528784,108570.0,108560.0,0.051]
[1748515802714,0.21968784,108570.0,108560.0,0.051]
[1748515803570,0.23598784,108570.0,108560.0,0.051]
[1748515804021,0.21968784,108570.0,108560.0,0.051]
[1748515807373,0.20368784,108570.0,108560.0,0.38674957]
[1748515807624,0.20368784,108570.0,108560.0,0.41754957]
[1748515809203,0.18368784,108570.0,108560.0,0.41754957]
[1748515811925,0.18368784,108570.0,108560.0,0.3328]
[1748515812135,0.18368784,108570.0,108560.0,0.66854957]
[1748515814035,0.18368784,108570.0,108560.0,0.75478957]
[1748515816331,0.16368784,108570.0,108560.0,0.75478957]
[1748515820453,0.16368784,108570.0,108560.0,0.78738957]
[1748515821791,0.16368784,108570.0,108560.0,0.77098957]
[1748515822456,0.16368784,108570.0,108560.0,0.78748957]
[1748515823095,0.16368784,108570.0,108560.0,0.45174]
[1748515823306,0.16368784,108570.0,108560.0,0.78748957]
[1748515823520,0.14368784,108570.0,108560.0,0.78748957]
[1748515826555,0.14368784,108570.0,108560.0,0.75426957]
[1748515828608,0.14368784,108570.0,108560.0,0.66802957]
[1748515829694,0.15888784,108570.0,108560.0,0.66802957]
[1748515830119,0.14368784,108570.0,108560.0,0.66802957]
[1748515830791,0.10026442,108570.0,108560.0,0.66802957]
[1748515831412,0.10026442,108570.0,108560.0,0.33228]
[1748515831639,0.28447737,108570.0,108560.0,0.66802957]
[1748515837734,0.26447737,108570.0,108560.0,0.66802957]
[1748515839010,1.9458634,108580.0,108570.0,0.05773091]
[1748515839224,1.04904899,108580.0,108570.0,2.12175355]
[1748515839444,1.03735491,108580.0,108570.0,2.23093425]
[1748515839664,1.03735491,108580.0,108570.0,2.63761337]
[1748515839665,0.90710431,108580.0,108570.0,2.63761337]
[1748515840097,0.90710431,108580.0,108570.0,2.3018638]
[1748515840324,0.90710431,108580.0,108570.0,2.56911501]
[1748515841475,0.90710431,108580.0,108570.0,2.73499201]
[1748515842166,0.90710431,108580.0,108570.0,2.36161412]
[1748515842579,0.90710431,108580.0,108570.0,2.36177412]
[1748515842960,0.90710431,108580.0,108570.0,2.18127627]
[1748515843157,0.90710431,108580.0,108570.0,2.17939799]
[1748515843360,0.90710431,108580.0,108570.0,2.16101799]
[1748515843563,0.90710431,108580.0,108570.0,1.45317799]
[1748515843932,0.90710431,108580.0,108570.0,1.53933799]
[1748515844160,0.90710431,108580.0,108570.0,1.81515049]
[1748515844796,0.89631343,108580.0,108570.0,1.81515049]
[1748515845003,0.88710431,108580.0,108570.0,1.81515049]
[1748515845206,0.88710431,108580.0,108570.0,1.78735049]
[1748515845406,0.88710431,108580.0,108570.0,2.15507049]
[1748515846199,0.88710431,108580.0,108570.0,1.78735049]
[1748515846400,0.88710431,108580.0,108570.0,2.15715049]
[1748515846768,0.88710431,108580.0,108570.0,1.85902924]
[1748515846946,0.88710431,108580.0,108570.0,2.15715049]
[1748515848092,0.89631351,108580.0,108570.0,2.15719049]
[1748515848269,0.89631343,108580.0,108570.0,2.15719049]
[1748515848473,0.90552263,108580.0,108570.0,1.57538924]
[1748515848731,0.88710431,108580.0,108570.0,1.54516924]
[1748515848880,0.9055228,108580.0,108570.0,1.86104924]
[1748515849081,0.90552288,108580.0,108570.0,1.86104924]
[1748515849299,1.09892899,108580.0,108570.0,0.90716538]
[1748515849512,1.08971962,108580.0,108570.0,0.90227143]
[1748515849720,1.08971962,108580.0,108570.0,1.1674]
[1748515850206,1.08471962,108580.0,108570.0,1.1674]
[1748515850417,1.08471962,108580.0,108570.0,0.7674]
[1748515851062,1.08471962,108580.0,108570.0,0.7676]
[1748515851277,0.19342351,108570.0,108560.0,0.002]
[1748515851485,0.19342351,108570.0,108560.0,0.37208]
[1748515851906,0.17342351,108570.0,108560.0,0.37208]
[1748515852335,0.18263407,108570.0,108560.0,0.37208]
[1748515852983,0.18263407,108570.0,108560.0,0.38129149]
[1748515853221,0.18263407,108570.0,108560.0,0.01121149]
[1748515853467,0.18263407,108570.0,108560.0,0.39276553]
[1748515853730,0.18263407,108570.0,108560.0,0.37204]
[1748515853978,0.18263407,108570.0,108560.0,0.38125149]
[1748515854266,0.17763407,108570.0,108560.0,0.38125149]
[1748515854715,0.17763407,108570.0,108560.0,0.6749569]
[1748515854716,0.01841993,108570.0,108560.0,0.6749569]
[1748515854776,0.9005233,108580.0,108570.0,0.00921064]
[1748515855032,0.90973309,108580.0,108570.0,0.19342359]
[1748515855286,0.90973309,108580.0,108570.0,0.21184428]
[1748515855560,0.9005228,108580.0,108570.0,0.22105441]
[1748515855853,0.90052288,108580.0,108570.0,0.26448393]
[1748515856072,0.90973208,108580.0,108570.0,0.26448393]
[1748515856324,0.90152263,108580.0,108570.0,0.26448393]
[1748515856576,0.910732,108580.0,108570.0,0.26448393]
[1748515857318,0.90152263,108580.0,108570.0,0.26448393]
[1748515857573,0.910732,108580.0,108570.0,0.26448393]
[1748515858555,0.88310431,108580.0,108570.0,0.37123788]
[1748515858775,0.88310431,108580.0,108570.0,0.77123788]
[1748515859005,0.86310431,108580.0,108570.0,1.0754283]
[1748515859437,0.86310431,108580.0,108570.0,1.42321408]
[1748515859691,0.86310431,108580.0,108570.0,1.41738767]
[1748515860774,0.86310431,108580.0,108570.0,1.43192852]
[1748515861452,0.86310431,108580.0,108570.0,1.09192852]
[1748515861686,0.86310431,108580.0,108570.0,1.43192852]
[1748515861934,0.86210431,108580.0,108570.0,1.73815952]
[1748515862176,0.86210431,108580.0,108570.0,1.74115952]
[1748515862853,0.86210431,108580.0,108570.0,1.73337374]
[1748515863551,0.85474259,108580.0,108570.0,1.74337374]
[1748515863752,0.85009059,108580.0,108570.0,1.74337374]
[1748515863968,0.84272887,108580.0,108570.0,1.74337374]
[1748515864179,0.83566787,108580.0,108570.0,1.74337374]
[1748515864390,0.82830615,108580.0,108570.0,1.75920368]
[1748515864862,0.81180759,108580.0,108570.0,1.44500973]
[1748515865078,0.81180759,108580.0,108570.0,1.74337374]
[1748515865285,0.80444802,108580.0,108570.0,1.74337374]
[1748515865729,0.79708845,108580.0,108570.0,1.74337374]
[1748515865957,0.79708845,108580.0,108570.0,1.77134164]
[1748515866187,0.76972888,108580.0,108570.0,1.77134164]
[1748515866400,0.76972888,108580.0,108570.0,1.74337374]
[1748515866614,0.76236931,108580.0,108570.0,1.74337374]
[1748515866826,0.76236931,108580.0,108570.0,2.11689374]
[1748515867059,0.75029975,108580.0,108570.0,2.11689374]
[1748515867493,0.74294018,108580.0,108570.0,2.11689374]
[1748515867708,0.74294018,108580.0,108570.0,2.41099374]
[1748515867926,0.73558061,108580.0,108570.0,2.41099374]
[1748515868365,0.72822104,108580.0,108570.0,2.41099374]
[1748515868799,0.72086147,108580.0,108570.0,2.03747374]
[1748515869007,0.72086147,108580.0,108570.0,2.41083374]
[1748515869227,0.72086147,108580.0,108570.0,2.03747374]
[1748515869228,0.69961245,108580.0,108570.0,2.03747374]
[1748515869443,0.69961245,108580.0,108570.0,2.41079374]
[1748515869670,0.69225343,108580.0,108570.0,2.41079374]
[1748515870086,0.68489441,108580.0,108570.0,2.41079374]
[1748515872619,0.68489441,108580.0,108570.0,2.41059374]
[1748515872849,0.68489441,108580.0,108570.0,2.40059374]
[1748515873082,0.66489441,108580.0,108570.0,2.40059374]
[1748515873583,0.66489441,108580.0,108570.0,2.10649374]
[1748515877605,0.66489441,108580.0,108570.0,2.10617374]
[1748515879560,0.66489441,108580.0,108570.0,2.12200368]
[1748515880271,0.005,108600.0,108590.0,6.22790871]
[1748515880481,1.99962836,108640.0,108630.0,0.21172685]
[1748515880706,1.99962836,108640.0,108630.0,1.37142481]
[1748515881168,1.98467762,108640.0,108630.0,1.37720716]
[1748515881423,1.98467762,108640.0,108630.0,1.38966509]
[1748515882284,1.98467762,108640.0,108630.0,1.43844323]
[1748515882522,1.98467762,108640.0,108630.0,1.44298408]
[1748515882744,1.98467762,108640.0,108630.0,1.84298408]
[1748515882953,1.98467762,108640.0,108630.0,1.84398408]
[1748515883829,1.98467762,108640.0,108630.0,1.81098408]
[1748515884056,1.98467762,108640.0,108630.0,1.43810408]
[1748515884269,1.98467762,108640.0,108630.0,1.81090408]
[1748515884496,1.98467762,108640.0,108630.0,1.81390408]
[1748515884707,1.98467762,108640.0,108630.0,1.84520408]
[1748515885402,1.98467762,108640.0,108630.0,1.84512408]
[1748515885613,1.98467762,108640.0,108630.0,1.85443491]
[1748515887168,1.96467762,108640.0,108630.0,1.85443491]
[1748515889369,1.96467762,108640.0,108630.0,1.5560709]
[1748515889576,1.96467762,108640.0,108630.0,1.85443491]
[1748515889771,1.96467762,108640.0,108630.0,1.83823491]
[1748515890043,1.96467762,108640.0,108630.0,1.1520509]
[1748515890177,1.96467762,108640.0,108630.0,1.5269831]
[1748515890788,1.97388165,108640.0,108630.0,1.51248225]
[1748515892208,1.96467762,108640.0,108630.0,1.51248225]
[1748515892392,1.97388157,108640.0,108630.0,1.51248225]
[1748515892598,1.97388157,108640.0,108630.0,1.51825658]
[1748515892811,1.97388157,108640.0,108630.0,1.51248225]
[1748515893208,1.97388157,108640.0,108630.0,1.50317142]
[1748515894254,1.94467762,108640.0,108630.0,1.50894579]
[1748515895038,1.94467762,108640.0,108630.0,1.50866579]
[1748515897635,1.94467762,108640.0,108630.0,1.50289142]
[1748515899628,1.96117762,108640.0,108630.0,1.13013142]
[1748515899835,1.97747762,108640.0,108630.0,1.50261142]
[1748515900040,1.98668165,108640.0,108630.0,1.50067518]
[1748515900701,1.98668165,108640.0,108630.0,1.21643518]
[1748515900912,1.98668165,108640.0,108630.0,1.10075518]
[1748515901116,1.99588585,108640.0,108630.0,1.10075518]
[1748515901327,1.97588576,108640.0,108630.0,1.50075518]
[1748515901771,1.97588576,108640.0,108630.0,1.50075769]
[1748515902406,1.96668165,108640.0,108630.0,1.10075769]
[1748515902738,1.96668165,108640.0,108630.0,1.50075769]
[1748515902942,1.97588576,108640.0,108630.0,1.50075769]
[1748515903166,1.97588576,108640.0,108630.0,0.72819769]
[1748515903377,1.97588576,108640.0,108630.0,1.10063769]
[1748515903704,1.98509004,108640.0,108630.0,0.81643769]
[1748515903909,1.99429449,108640.0,108630.0,1.10059769]
[1748515904135,1.92467762,108640.0,108630.0,1.10059769]
[1748515904317,1.92467762,108640.0,108630.0,1.40089543]
[1748515904730,1.92467762,108640.0,108630.0,1.41719543]
[1748515906381,1.92467762,108640.0,108630.0,1.80948509]
[1748515906586,1.92467762,108640.0,108630.0,1.79318509]
[1748515906811,1.92467762,108640.0,108630.0,1.49482108]
[1748515907259,1.91732126,108640.0,108630.0,3.42845491]
[1748515907468,1.91732126,108640.0,108630.0,3.32284891]
[1748515907687,1.9099649,108640.0,108630.0,3.24883994]
[1748515907908,1.9099649,108640.0,108630.0,2.87691294]
[1748515908118,1.90260854,108640.0,108630.0,2.81331994]
[1748515908335,1.88260854,108640.0,108630.0,2.75985194]
[1748515908549,1.87525218,108640.0,108630.0,2.48423694]
[1748515908994,1.86789582,108640.0,108630.0,2.48423694]
[1748515909432,1.86053946,108640.0,108630.0,2.50006688]
[1748515909868,1.8531831,108640.0,108630.0,2.45132188]
[1748515910292,1.84582674,108640.0,108630.0,2.45132188]
[1748515910757,1.83847038,108640.0,108630.0,2.45132188]
[1748515911165,1.83111402,108640.0,108630.0,2.45132188]
[1748515911590,1.82375766,108640.0,108630.0,2.45132188]
[1748515912045,1.81640219,108640.0,108630.0,2.45132188]
[1748515912469,1.80904672,108640.0,108630.0,2.45132188]
[1748515912687,1.3768665,108640.0,108630.0,1.97645595]
[1748515912903,1.36951103,108640.0,108630.0,1.98728589]
[1748515913166,1.36951103,108640.0,108630.0,2.75944589]
[1748515913389,1.32997534,108640.0,108630.0,2.75640589]
[1748515913599,1.32261987,108640.0,108630.0,2.75640589]
[1748515913846,1.32261987,108640.0,108630.0,2.75740589]
[1748515914067,1.28308418,108640.0,108630.0,2.91522169]
[1748515914287,1.28308418,108640.0,108630.0,2.91444281]
[1748515914505,1.27572871,108640.0,108630.0,2.88736589]
[1748515914723,1.24354849,108640.0,108630.0,2.88736589]
[1748515914928,1.23619302,108640.0,108630.0,2.88736589]
[1748515915330,1.19665733,108640.0,108630.0,2.88736589]
[1748515915579,1.17665733,108640.0,108630.0,2.88536589]
[1748515915829,1.16930186,108640.0,108630.0,2.88536589]
[1748515916112,1.13712164,108640.0,108630.0,2.89236589]
[1748515916323,1.12976617,108640.0,108630.0,2.87353595]
[1748515916541,0.03010811,108670.0,108660.0,1.28732924]
[1748515916754,0.02275264,108670.0,108660.0,2.05646167]
[1748515917021,0.02275264,108670.0,108660.0,1.58394567]
[1748515917234,0.02275264,108670.0,108660.0,1.86005467]
[1748515917660,0.02324491,108670.0,108660.0,1.86005467]
[1748515918083,0.02324491,108670.0,108660.0,0.79863681]
[1748515918333,0.05444491,108670.0,108660.0,1.08058599]
[1748515918546,0.0636464,108670.0,108660.0,1.08058599]
[1748515918755,0.0636464,108670.0,108660.0,1.07480234]
[1748515918959,0.06464631,108670.0,108660.0,1.08058621]
[1748515919164,0.05544491,108670.0,108660.0,1.08058621]
[1748515919792,0.05444491,108670.0,108660.0,1.08058621]
[1748515920004,0.05644491,108670.0,108660.0,1.08046621]
[1748515920209,0.05844491,108670.0,108660.0,1.08046621]
[1748515920617,0.05844491,108670.0,108660.0,0.70850621]
[1748515920822,0.06764648,108670.0,108660.0,0.7085063]
[1748515921024,0.07684822,108670.0,108660.0,0.71770872]
[1748515921234,0.06764648,108670.0,108660.0,1.08902872]
[1748515921659,0.05844491,108670.0,108660.0,1.08324485]
[1748515921871,0.0676464,108670.0,108660.0,1.08324485]
[1748515922511,0.07684806,108670.0,108660.0,1.08324485]
[1748515922724,0.05684806,108670.0,108660.0,1.08320485]
[1748515923156,0.0476464,108670.0,108660.0,1.08320485]
[1748515923395,0.05684797,108670.0,108660.0,1.08320485]
[1748515924732,0.04764631,108670.0,108660.0,1.08320485]
[1748515924950,0.04764631,108670.0,108660.0,1.0889872]
[1748515925386,0.04764631,108670.0,108660.0,1.08320485]
[1748515925627,0.04764631,108670.0,108660.0,1.0889872]
[1748515925878,0.00724491,108670.0,108660.0,1.38735121]
[1748515926346,0.00724491,108670.0,108660.0,1.46735121]
[1748515926568,0.00724491,108670.0,108660.0,1.46928333]
[1748515928779,0.00724491,108670.0,108660.0,1.17091932]
[1748515929685,0.0274545,108680.0,108670.0,0.21164891]
[1748515929942,0.0274545,108680.0,108670.0,0.30848347]
[1748515929943,0.03390119,108680.0,108670.0,0.30848347]
[1748515930600,0.03390119,108680.0,108660.0,0.00578061]
[1748515930601,0.18404343,108670.0,108660.0,0.00578061]
[1748515930819,0.18404343,108670.0,108650.0,0.27749792]
[1748515930820,0.22696848,108660.0,108650.0,0.27749792]
[1748515931037,0.05211036,108660.0,108650.0,0.57026161]
[1748515931270,0.05211036,108660.0,108650.0,0.57946505]
[1748515931489,0.05211036,108660.0,108650.0,0.57946513]
[1748515931711,0.23617073,108660.0,108650.0,0.57946513]
[1748515932397,0.22696848,108660.0,108650.0,0.57026161]
[1748515932903,0.24206848,108660.0,108650.0,0.57946522]
[1748515933116,0.24206848,108660.0,108650.0,0.58030522]
[1748515933998,0.24206848,108660.0,108650.0,0.20926522]
[1748515934220,0.23286597,108660.0,108650.0,0.58026539]
[1748515934435,0.23286597,108660.0,108650.0,0.29690539]
[1748515934651,0.23286597,108660.0,108650.0,0.57444478]
[1748515934883,0.23286597,108660.0,108650.0,0.57102995]
[1748515935097,0.23286597,108660.0,108650.0,0.57098995]
[1748515935307,0.23286597,108660.0,108650.0,0.58019364]
[1748515935514,0.23286597,108660.0,108650.0,0.49255364]
[1748515935722,0.2236633,108660.0,108650.0,0.48330995]
[1748515935939,0.2236633,108660.0,108650.0,0.20006995]
[1748515936149,0.21446037,108660.0,108650.0,0.00678886]
[1748515936370,0.51282438,108660.0,108650.0,0.28424]
[1748515936590,0.51282438,108660.0,108650.0,0.001]
[1748515936809,0.49282438,108660.0,108650.0,0.28432]
[1748515937536,0.49282438,108660.0,108650.0,0.001]
[1748515937765,0.49282438,108660.0,108650.0,0.28428]
[1748515938193,0.49282438,108660.0,108650.0,0.28328]
[1748515938409,0.49482438,108660.0,108650.0,0.28328]
[1748515938623,0.49582438,108660.0,108650.0,0.28328]
[1748515938848,0.02420403,108640.0,108630.0,0.69767915]
[1748515939106,0.04261302,108640.0,108630.0,1.15957426]
[1748515939350,0.22670727,108640.0,108630.0,0.77952904]
[1748515939593,0.21750324,108640.0,108630.0,1.15036904]
[1748515939842,0.21750324,108640.0,108630.0,1.17802443]
[1748515939843,0.04261327,108640.0,108630.0,1.17802443]
[1748515940064,0.0770226,108640.0,108630.0,1.16931174]
[1748515940316,0.06781832,108640.0,108630.0,1.16931174]
[1748515940819,0.25191257,108640.0,108630.0,0.30889234]
[1748515941042,0.25191257,108640.0,108630.0,0.41143753]
[1748515941043,0.24270812,108640.0,108630.0,0.41143753]
[1748515941513,0.24270812,108640.0,108630.0,0.12919753]
[1748515941746,0.24270812,108640.0,108630.0,0.41239753]
[1748515942208,0.24270812,108640.0,108630.0,0.11999206]
[1748515942442,0.24270812,108640.0,108630.0,0.40323206]
[1748515942662,0.23350358,108640.0,108630.0,0.3940265]
[1748515942938,0.52266297,108640.0,108630.0,0.40323206]
[1748515943373,0.22429896,108640.0,108630.0,0.60591395]
[1748515943823,0.20429896,108640.0,108630.0,0.60591395]
[1748515944042,0.20429896,108640.0,108630.0,0.59670865]
[1748515944484,0.20429896,108640.0,108630.0,0.58750326]
[1748515945140,0.20429896,108640.0,108630.0,0.31330865]
[1748515945359,0.20529896,108640.0,108630.0,0.58746326]
[1748515945569,0.20529896,108640.0,108630.0,0.58642326]
[1748515945780,0.20629896,108640.0,108630.0,0.58642326]
[1748515946412,0.20629896,108640.0,108630.0,0.59562873]
[1748515947255,0.22289896,108640.0,108630.0,0.59562873]
[1748515947471,0.19529896,108640.0,108630.0,0.59562873]
[1748515947685,0.22599896,108640.0,108630.0,0.31230873]
[1748515947936,0.19529896,108640.0,108630.0,0.59550873]
[1748515948360,0.22599896,108640.0,108630.0,0.59550873]
[1748515948578,0.19529896,108640.0,108630.0,0.59550873]
[1748515950942,0.17529896,108640.0,108630.0,0.1097865]
[1748515951165,0.17529896,108640.0,108630.0,0.59534873]
[1748515954707,0.17529896,108640.0,108630.0,0.40199206]
[1748515955136,0.17529896,108640.0,108630.0,0.3927865]
[1748515955356,0.17529896,108640.0,108630.0,0.40199206]
[1748515958040,0.15729896,108640.0,108630.0,0.40199206]
[1748515958497,0.15729896,108640.0,108630.0,0.58610326]
[1748515958928,0.15729896,108640.0,108630.0,0.40199206]
[1748515959563,0.15729896,108640.0,108630.0,0.40777355]
[1748515959788,0.15729896,108640.0,108630.0,0.39856799]
[1748515960890,0.15729896,108640.0,108630.0,0.39858045]
[1748515964258,0.15729896,108640.0,108630.0,0.39874045]
[1748515965101,0.13729896,108640.0,108630.0,0.39874045]
[1748515965310,0.13729896,108640.0,108630.0,0.39874711]
[1748515965534,0.13729896,108640.0,108630.0,0.40646158]
[1748515967683,0.13729896,108640.0,108630.0,0.40066097]
[1748515969950,0.13729896,108640.0,108630.0,0.11750097]
[1748515970186,0.76492698,108640.0,108630.0,0.00630143]
[1748515970404,0.76492698,108640.0,108630.0,0.00049227]
[1748515970405,0.46656297,108640.0,108630.0,0.00049227]
[1748515971255,0.46556297,108640.0,108630.0,0.00049227]
[1748515971908,0.46756297,108640.0,108630.0,0.00049227]
[1748515972120,0.46656297,108640.0,108630.0,0.00049227]
[1748515972341,0.44856297,108640.0,108630.0,0.00049227]
[1748515972565,0.44456297,108640.0,108630.0,0.00049227]
[1748515972780,0.44756297,108640.0,108630.0,0.00049227]
[1748515973006,0.45156297,108640.0,108630.0,0.00049227]
[1748515973463,0.22391659,108630.0,108620.0,0.27951212]
[1748515973701,0.5222806,108630.0,108620.0,0.27956138]
[1748515973890,0.5222806,108630.0,108620.0,4.926e-05]
[1748515974112,0.5222806,108630.0,108620.0,0.28396926]
[1748515974750,0.5242806,108630.0,108620.0,0.28392926]
[1748515975394,0.5262806,108630.0,108620.0,0.28392926]
[1748515975599,0.5353271,108630.0,108620.0,0.28392926]
[1748515976478,0.5353271,108630.0,108620.0,0.28380926]
[1748515978227,0.5353271,108630.0,108620.0,0.28372926]
[1748515979069,0.23696309,108630.0,108620.0,0.28372926]
[1748515979281,0.5153271,108630.0,108620.0,0.28372926]
[1748515979956,0.52453249,108630.0,108620.0,4.926e-05]
[1748515980185,0.52453249,108630.0,108620.0,0.28380926]
[1748515981746,0.22616848,108630.0,108620.0,0.28380926]
[1748515981950,0.52453249,108630.0,108620.0,0.28380926]
[1748515983236,0.51548599,108630.0,108620.0,0.28380926]
[1748515983688,0.51548599,108630.0,108620.0,0.28416926]
[1748515984117,0.21712198,108630.0,108620.0,0.28416926]
[1748515984329,0.18652198,108630.0,108620.0,0.28416926]
[1748515985450,0.18652198,108630.0,108620.0,4.926e-05]
[1748515985667,0.18652198,108630.0,108620.0,0.28456926]
[1748515986355,0.16652198,108630.0,108620.0,0.28456926]